Cogmind - Beta 13 @@@ ROGUE MODE // 2024.04.06 @ 19:18:41 Player: dyedquartz Result: Destroyed by Y-45 Defender with Beam Rifle Performance ------------- Evolutions (1) 500 Regions Visited (4) 800 Robots Destroyed (56) 280 Value Destroyed (1370) 1370 Prototype IDs (1) 20 Alien Tech Used (0) 0 Bonus (-51) -51 TOTAL SCORE: 2919 Bonus ------- High Alert Combat Kills 82 Friendly Fire -133 Cogmind --------- Core Integrity 0/400 Matter 311/500 Energy 67/100 System Corruption 0% Temperature Cool (31) Movement Core (200) Ox3 Location -9/Storage Parts ------- > --- POWER (1) -------- (None) > --- PROPULSION (2) --- (None) > --- UTILITY (3) ------ High-capacity Matter Pod Targeting Computer > --- WEAPON (3) ------- Improved EM Shotgun Small Laser Particle Gun > --- INVENTORY (5) ---- Advanced Beam Cannon Advanced Beam Cannon Advanced Beam Cannon Advanced Beam Cannon Advanced Beam Cannon Peak State ------------ > --- POWER ------------ Ion Engine > --- PROPULSION ------- Light Treads Light Treads > --- UTILITY ---------- High-capacity Matter Pod Targeting Computer Drone Bay > --- WEAPON ----------- Rocket Launcher Rocket Launcher Rocket Launcher > --- INVENTORY -------- Drone Bay Small Laser Light Assault Rifle Light Cannon [Rating: 16] Favorites ----------- Power Light Ion Engine Engine Light Ion Engine Propulsion Light Treads Treads Light Treads Wheel Wheel Hover Unit Improved Hover Unit Utility High-capacity Matter Pod Device Drone Bay Storage High-capacity Matter Pod Processor Targeting Computer Weapon Rocket Launcher Energy Gun Small Laser Ballistic Gun Light Assault Rifle Ballistic Cannon Light Cannon Launcher Rocket Launcher Build | -11 -10 -10 -9 -9 ------- Run | Yrd Mat Min Mat Sto Slots Evolved 2 | . . . 2 . Power . | . . . . . Propulsion . | . . . . . Utility 1 | . . . 1 . Weapon 1 | . . . 1 . Parts Attached 37 | 5 3 7 14 8 Power 4 | 1 . 1 1 1 Engine 4 | 1 . 1 1 1 Core . | . . . . . Reactor . | . . . . . Propulsion 10 | 2 . 1 7 . Treads 4 | . . 1 3 . Leg . | . . . . . Wheel 4 | 2 . . 2 . Hover 2 | . . . 2 . Flight . | . . . . . Utility 8 | . 2 2 2 2 Device 4 | . . 1 1 2 Storage 3 | . 2 . 1 . Processor 1 | . . 1 . . Hackware . | . . . . . Protection . | . . . . . Artifact . | . . . . . Weapon 15 | 2 1 3 4 5 Energy Gun 3 | . . . . 3 Energy Cannon . | . . . . . Ballistic Gun 6 | 2 . 2 1 1 Ballistic Cannon 2 | . . 1 . 1 Launcher 4 | . 1 . 3 . Special Weapon . | . . . . . Impact Weapon . | . . . . . Slashing Weapon . | . . . . . Piercing Weapon . | . . . . . Special Melee Weapon . | . . . . . Unidentified Prototypes 1 | . . . . 1 Parts Lost 19 | . . 6 3 10 Power 3 | . . 1 1 1 Propulsion 4 | . . 2 . 2 Utility 4 | . . 1 1 2 Weapon 8 | . . 2 1 5 Highest Loss Streak 7 | . . 5 1 7 To Critical Strikes . | . . . . . Average Slot Usage (%) 80 | . 88 86 78 76 Engine 8 | . 14 10 10 4 Treads 8 | . . 4 9 12 Wheel 6 | . 28 15 1 . Hover 1 | . . . 5 . Device 5 | . . 4 3 7 Storage 12 | . 16 17 11 11 Processor 8 | . . 4 11 11 Energy Gun 3 | . . . . 8 Ballistic Gun 9 | . 16 21 11 . Ballistic Cannon 2 | . . . 8 . Launcher 12 | . 11 5 6 19 Naked Turns . | . . . . . Heaviest Build 27 | 5 21 21 19 27 Greatest Support 40 | 20 20 20 40 40 Greatest Overweight (x) 4 | . 1 1 1 4 Average Overweight (x) . | . . . . . Largest Inventory Capacity 10 | 5 10 10 5 5 Average Capacity 5 | 5 7 6 5 5 Most Carried 5 | 3 2 3 5 5 Average Carried 2 | . . 2 4 3 Final Capacity 10 | 5 10 5 5 5 Final Carried 5 | . 1 3 5 5 Class Distribution -------------------- 58% | Mutant 36% | Gunner 4% | Bomber Dominant Class ---------------- Mutant | -10/Materials Mutant | -10/Mines Mutant | -9/Materials Gunner | -9/Storage Resources | -11 -10 -10 -9 -9 ----------- Run | Yrd Mat Min Mat Sto Matter Collected 1307 | 252 8 339 451 257 Remotely . | . . . . . Salvage Created 1355 | 33 235 143 476 468 Parts 84 | . 18 11 27 28 Haulers Intercepted 3 | . 1 . 1 1 Recyclers Shooed 1 | . . . 1 . Parts Field Recycled . | . . . . . Retrieved Matter . | . . . . . Parts Self-Destructed . | . . . . . Prevented . | . . . . . Kills | -11 -10 -10 -9 -9 ------- Run | Yrd Mat Min Mat Sto Combat Hostiles Destroyed 37 | 1 5 8 12 11 Guns 14 | 1 . 3 5 5 Cannons 2 | . . . 2 . AOE 21 | . 5 5 5 6 Classes Destroyed 11 | 1 4 2 2 2 Worker 1 | . 1 . . . Builder 5 | . 2 . 2 1 Hauler 3 | . 1 . 1 1 Recycler 5 | . 1 . 2 2 Mechanic 1 | . . . . 1 Operator 1 | . . . 1 . Drone 1 | . . . . 1 Watcher 3 | . . . 1 2 Swarmer 12 | . . 6 3 3 Grunt 17 | 1 5 . 7 4 Sentry 8 | . . 2 2 4 Best Kill Streak 10 | 1 10 3 6 10 Combat Bots Only 5 | 1 5 3 3 5 Max Kills in Single Turn 5 | 1 5 3 3 3 Gunslinging . | . . . . . Exploded 3 | . 3 3 2 3 Melee . | . . . . . Uniques/NPCs Destroyed . | . . . . . Combat | -11 -10 -10 -9 -9 -------- Run | Yrd Mat Min Mat Sto Hostile Shots Fired 230 | 1 8 47 78 96 Missed 72 | . 3 11 28 30 Damage Taken 2114 | 10 58 496 461 1089 Core 598 | 10 11 168 97 312 Absorbed by Shields 76 | . . . 76 . Core Remaining (%) 60 | 96 . 24 . . Volleys Fired 110 | 1 8 26 42 33 Largest 3 | 2 2 2 3 3 Hottest 150 | 40 50 50 99 150 Shots Fired 231 | 2 14 44 113 58 Gun 142 | 2 8 42 59 31 Cannon 37 | . . . 36 1 Launcher 52 | . 6 2 18 26 Special . | . . . . . Kinetic 154 | 2 8 42 95 7 Thermal 18 | . . . . 18 Explosive 52 | . 6 2 18 26 Electromagnetic 7 | . . . . 7 Robot Hit Streak 11 | 2 3 5 8 11 Robot Miss Streak 8 | . 1 8 7 3 Penetration Max . | . . . . . Secondary Targets . | . . . . . Shots Hit Robots 121 | 2 6 25 52 36 Core Hits 107 | 2 14 12 34 45 Critical Kills . | . . . . . Critical Parts Destroyed 1 | . . . 1 . Critical Strikes 2 | . . . 2 . Destroy 1 | . . . 1 . Blast 1 | . . . 1 . Melee Attacks . | . . . . . Impact . | . . . . . Slashing . | . . . . . Piercing . | . . . . . Sneak Attacks . | . . . . . Combat Hostiles . | . . . . . Follow-up Attacks . | . . . . . Damage Inflicted 3827 | 16 942 448 1170 1251 Guns 806 | 16 23 198 262 307 Cannons 303 | . . . 283 20 Explosions 2716 | . 919 250 623 924 Melee . | . . . . . Ramming 2 | . . . 2 . Kinetic 828 | 16 23 198 545 46 Thermal 256 | . . 32 . 224 Explosive 2607 | . 919 218 623 847 Electromagnetic 134 | . . . . 134 Impact . | . . . . . Slashing . | . . . . . Piercing . | . . . . . Highest Corruption . | . . . . . Average Corruption . | . . . . . Corruption Purged . | . . . . . Corruption Blocked . | . . . . . Overload Shots . | . . . . . Overflow Damage 23 | . . 4 16 3 Projectiles . | . . . . . Explosions 23 | . . 4 16 3 Melee . | . . . . . Knockbacks 5 | . . . 5 . Impact . | . . . . . Kinetic 5 | . . . 5 . Secondary . | . . . . . Self-Inflicted Damage 247 | . . 46 39 162 Shots 10 | . . 2 1 7 Rammed 2 | . . . 1 1 Targets Rammed 2 | . . . 1 1 Kicked . | . . . . . Crushed . | . . . . . Highest Temperature 154 | 6 32 22 154 130 Average Temperature 36 | 6 13 11 42 32 Received Heat Transfer 636 | 6 30 126 138 336 Siege Activations . | . . . . . Robots Corrupted . | . . . . . Combat Hostiles . | . . . . . Parts Fried . | . . . . . Impact Corruptions . | . . . . . Robots Melted . | . . . . . Combat Hostiles . | . . . . . Parts Melted . | . . . . . Heat Transferred 437 | . . 50 . 387 Parts Sabotaged . | . . . . . Parts Stolen . | . . . . . Parts Stripped . | . . . . . Power Chain Reactions 1 | . . . . 1 Alert | -11 -10 -10 -9 -9 ------- Run | Yrd Mat Min Mat Sto Peak Influence 621 | 20 296 365 621 535 Initial 261 | . 13 115 138 261 Average 284 | 3 89 325 271 339 Maximum Alert Level 2 | . 1 1 2 2 Low Security (%) 17 | 100 75 . 27 . Level 1 69 | . 24 99 56 77 Level 2 13 | . . . 15 22 Level 3 . | . . . . . Level 4 . | . . . . . Level 5 . | . . . . . High Security . | . . . . . Max Security . | . . . . . Squads Dispatched 5 | . 2 . 2 1 Investigation 3 | . 1 . 1 1 Extermination . | . . . . . Reinforcement 2 | . 1 . 1 . Assault . | . . . . . Garrison . | . . . . . Intercept . | . . . . . Searches Triggered . | . . . . . Construction Impeded 1 | . . . 1 . Haulers Reinforced . | . . . . . Active Scanning Responses . | . . . . . Cargo Convoy Interrupts . | . . . . . Stealth | -11 -10 -10 -9 -9 --------- Run | Yrd Mat Min Mat Sto Distress Signals 3 | . . . 1 2 Communications Jammed . | . . . . . Distress Signals . | . . . . . Times Spotted 43 | 1 6 8 15 13 Peak Tracking Total 6 | 1 4 3 5 6 Tactical Retreats . | . . . . . Traps | -11 -10 -10 -9 -9 ------- Run | Yrd Mat Min Mat Sto Traps Triggered 1 | . 1 . . . Indirectly . | . . . . . Trap Hack Attempts . | . . . . . Triggered . | . . . . . Disarmed . | . . . . . Reprogrammed . | . . . . . Reused . | . . . . . Traps Extracted . | . . . . . Installed . | . . . . . Triggered . | . . . . . Machines | -11 -10 -10 -9 -9 ---------- Run | Yrd Mat Min Mat Sto Machines Disabled 16 | . 6 5 4 1 Max in Single Turn 5 | . 3 5 3 1 Machines Repaired . | . . . . . Machines Dismantled . | . . . . . Machines Sabotaged . | . . . . . Overloaded Fab Kills . | . . . . . Hacking | -11 -10 -10 -9 -9 --------- Run | Yrd Mat Min Mat Sto Machines Accessed 7 | . 1 . 2 4 Terminals 6 | . . . 2 4 Fabricators . | . . . . . Repair Stations . | . . . . . Recycling Units 1 | . 1 . . . Scanalyzers . | . . . . . Garrison Access . | . . . . . Total Hacks 18 | . 3 . 5 10 Successful 11 | . . . 2 9 Failed 7 | . 3 . 3 1 Catastrophic . | . . . . . Database Lockouts . | . . . . . Manual . | . . . . . Terminals 15 | . . . 5 10 Fabricators . | . . . . . Repair Stations . | . . . . . Recycling Units 3 | . 3 . . . Scanalyzers . | . . . . . Garrison Access . | . . . . . Terminal Hacks 11 | . . . 2 9 Record 10 | . . . 2 8 Open Door 1 | . . . . 1 Fabricator Hacks . | . . . . . Repair Station Hacks . | . . . . . Recycling Unit Hacks . | . . . . . Scanalyzer . | . . . . . Garrison Access Hacks . | . . . . . Unauthorized Hacks . | . . . . . Terminals . | . . . . . Fabricators . | . . . . . Repair Stations . | . . . . . Recycling Units . | . . . . . Scanalyzers . | . . . . . Garrison Access . | . . . . . Data Cores Recovered . | . . . . . Used . | . . . . . Hacking Detections 6 | . 1 . 2 3 Full Trace Events 4 | . 1 . 1 2 Feedback Events . | . . . . . Feedback Blocked . | . . . . . Robot Schematics Acquired . | . . . . . Robots Built . | . . . . . Authchips . | . . . . . Time . | . . . . . Total Robot Build Rating . | . . . . . Part Schematics Acquired . | . . . . . Parts Built . | . . . . . Authchips . | . . . . . Time . | . . . . . Total Part Build Rating . | . . . . . Parts Repaired . | . . . . . Time . | . . . . . Parts Recycled . | . . . . . Recycled Matter . | . . . . . Retrieved Matter . | . . . . . Retrieved Components . | . . . . . Parts Scanalyzed . | . . . . . Part Schematics Acquired . | . . . . . Parts Damaged . | . . . . . Bothacking | -11 -10 -10 -9 -9 ------------ Run | Yrd Mat Min Mat Sto Used RIF Installer . | . . . . . Robots Hacked . | . . . . . Non-combat . | . . . . . Combat . | . . . . . Robot Hacks Applied . | . . . . . Relay Couplers Released . | . . . . . Fabnet Peak Effective % . | . . . . . Robots Rewired . | . . . . . Allies Hacked . | . . . . . Hacks Repelled . | . . . . . Allies | -11 -10 -10 -9 -9 -------- Run | Yrd Mat Min Mat Sto Total Allies . | . . . . . Largest Group . | . . . . . Highest-Rated Group . | . . . . . Highest-Rated Ally . | . . . . . Total Orders . | . . . . . Ally Attacks . | . . . . . Total Damage . | . . . . . Kills . | . . . . . Allies Corrupted . | . . . . . Allies Melted . | . . . . . Intel | -11 -10 -10 -9 -9 ------- Run | Yrd Mat Min Mat Sto Robot Analysis Total . | . . . . . Derelict Logs Recovered 1 | . . 1 . . Drone Launches 5 | . . . . 5 Drone Recoveries 2 | . . . . 2 Exploration | -11 -10 -10 -9 -9 ------------- Run | Yrd Mat Min Mat Sto Turns Passed 1665 | 60 161 341 381 722 Spaces Moved 1003 | 78 154 247 168 356 Core 173 | 50 . 13 . 110 Treads 398 | . . 67 85 246 Legs . | . . . . . Wheels 367 | 28 154 167 18 . Hover 65 | . . . 65 . Flight . | . . . . . Fastest Speed 50 | 50 80 80 80 150 Average Speed 129 | 60 87 107 135 174 Slowest Speed 250 | 80 95 160 160 250 Overloaded Moves . | . . . . . Propulsion Burnouts . | . . . . . Robots Hopped . | . . . . . Cave-ins Triggered . | . . . . . Exploration Rate (%) 38 | 9 38 66 22 59 Regions Visited 4 Branch Regions 2 Pre-discovered Areas . | . . . . . Known Exits Taken . | . . . . . Unknown Exits Taken 4 | 1 1 1 1 . Scrap Searched 1 | . . 1 . . Spaces Dug . | . . . . . Terrain Destroyed 388 | . 43 15 122 208 Melee . | . . . . . Projectile . | . . . . . AOE 388 | . 43 15 122 208 Terrain Rammed . | . . . . . Walls Destroyed . | . . . . . Machines Disabled . | . . . . . Actions | -11 -10 -10 -9 -9 --------- Run | Yrd Mat Min Mat Sto Total 1188 | 88 167 286 240 407 Wait . | . . . . . Move 999 | 77 153 246 167 356 Hop . | . . . . . Pick Up 32 | 5 3 7 9 8 Fast Attach 2 | . . . 1 1 Attach 25 | 5 2 5 6 7 Detach 3 | . . . 3 . Swap 10 | . 1 2 7 . Drop 5 | . . . 4 1 Fire 110 | 1 8 26 42 33 Melee . | . . . . . Ram 1 | . . . . 1 Kick . | . . . . . Crush 1 | . . . 1 . Escape Stasis . | . . . . . Rewire . | . . . . . Trap . | . . . . . Miscellaneous . | . . . . . Route ------- -11/Scrapyard -10/Materials -10/Mines -9/Materials (discovered 2 exits: [*Min] / *Sto) -9/Storage History --------- Turn | Location | Event 2 | -11/Scrapyard | Met Revision 17 48 | -11/Scrapyard | Discovered new exit (range 8) 61 | -11/Scrapyard | Entered Materials 126 | -10/Materials | Discovered new exit (range 14) 222 | -10/Materials | Entered Mines 261 | -10/Mines | Met a Derelict bent on vengeance 321 | -10/Mines | Build established: Mutant 422 | -10/Mines | Core integrity fell below 50% 458 | -10/Mines | Lost 5 parts (1p2n1u1w) 475 | -10/Mines | Found a hidden stash of uninstalled traps 548 | -10/Mines | Learned Materials security intel 548 | -10/Mines | Discovered new exit (range 8) 563 | -10/Mines | Entered Materials 563 | -9/Materials | Evolved 2 slots: Utility x1, Weapon x1 907 | -9/Materials | Discovered new exit (range 14) 929 | -9/Materials | Discovered new exit (range 15) 944 | -9/Materials | Entered Storage 1180 | -9/Storage | Build established: Gunner 1391 | -9/Storage | Core integrity fell below 50% 1441 | -9/Storage | Lost 7 parts (1p1n1u4w) 1504 | -9/Storage | Core integrity fell below 20% 1666 | -9/Storage | Destroyed by Y-45 Defender with Beam Rifle Last Messages --------------- K-01 Serf collects debris. U-05 Engineer lays Concrete. K-01 Serf collects debris. Acquired Particle Gun. U-05 Engineer lays Concrete. K-01 Serf collects debris. U-05 Engineer lays Concrete. U-05 Engineer builds a Wall. U-05 Engineer builds a Door. U-05 Engineer lays Concrete. U-05 Engineer builds a Wall. K-01 Serf collects debris. U-05 Engineer builds a Wall. U-05 Engineer lays Concrete. K-01 Serf collects debris. U-05 Engineer lays Concrete. K-01 Serf collects debris. U-05 Engineer lays Concrete. Acquired Prototype Energy Cannon. [Achievement: Crack Shot] Map ----- +----------------------------------------------------+ | [# ##????????????????????????????????????????? | | ###%# ##???????????????????????????????????????? | | # #???????????????????????????????????????? | | # #???????????????????????????????????????? | | # #???????????????????????????????????????? | | #### ####???????????????????????????????????????? | | ????###??????????????????????????????????????????? | | ?????????????????????????????????????????????????? | | ??????????????????????? ???????????????????????? | | ????? ??????????????? ??????????????????????? | | ????? ??????????????? Y ??????????????????????? | | ????? #??????????????# #??????????????????????? | | ????# #??????????????# #??????????????????????? | | ##??# #??????????????# #??????????????????????? | | #??# #??????????????# #??????????????????????? | | #### ##?????????????# #??????????????????????? | | #### #?????????????# #??????????????????????? | | % #?????????????# #??????????????????????? | | +?????????????# #??????????????????????? | | #### #?????????????# #??????????????????????? | | ## ##?????????????# #########+####?????????? | | ### #??????????????# ????????? | | # ################ ????????? | | ### ????????? | | + ########;#+######???????????????? | | ######+#########?????# @ Y#???????????????? | | #???# T#???????????# """"" ##???????????????? | | #???#" "##???????????# """"" ""???????????????? | | #???# ]#????????????" """"" R???????????????? | | #???# #???????????"T ""???????????????? | | #???#####??????????#"" """"" ??????????????????? | | #??????????????????### """"????????????????????? | | #????????????????????# ????????????????????????? | | ###????????????????????? ????????????????????????? | | ????????????????????????#????????????????????????? | | | | | | | | | | | | | | | | | | | | | | | | | | | | | | | +----------------------------------------------------+ Best States ------------- Heat Dissipation 35 Energy Generation 10 Energy Capacity 250 Matter Stores 481 Matter Capacity 500 Sight Range 16 Terrain Scan Density 10 Evasion (%) 50 Targeting Accuracy 5 Recoil Reduction 2 Item Schematics ----------------- None Robot Schematics ------------------ None Fabricated ------------ Nothing Alien Tech Used ----------------- None Achievements -------------- Backstab Crack Shot Librarian Remodeling Challenges ------------ None Game ------ Seed LayeredRefineryArmor Manual? 0 Play Time 00:32:48 Cumulative 1.8 hours Start 2024.04.06 @ 18:47:09 End 2024.04.06 @ 19:18:41 Sessions 1 Manual Loads 0 Difficulty Rogue Special Mode None Game No. 2 Rogue 2 Adventurer 0 Explorer 0 Win Type - Total 0 Types 0/0/0/0/0/0/0/0/0 Lore% 1 Gallery% 4 Achievement% 5 Wizard Run 0 Options --------- Layout 1 ASCII 0 Keyboard 0 Movement Mouse Keybinds 0 Fullscreen 1 Font 24/Smallcaps Map View 50x35 Zoom Use 0% Tactical HUD 0 Map Filters NONE Filters NONE Steam 1 RUN: 02664ca3-1d4c-4357-a599-dc6e53a0a40f